[Event "ECo-C Extraliga 2023-24"]
[Site "Slovakia"]
[Date "2024.02.25"]
[Round "8.7"]
[White "Petran, Peter"]
[Black "Bango, Lukas"]
[Result "0-1"]
[ECO "B07"]
[WhiteElo "2205"]
[BlackElo "2255"]
[Annotator "RC"]
[PlyCount "106"]
[EventDate "2023.10.06"]
[EventType "team-tourn"]
[EventCountry "SVK"]
[SourceTitle "playchess.com"]
[Source "ChessBase"]
[SourceQuality "1"]
[TimeControl "40/5400+30:1800+30"]

1. g3 {[%emt 0:00:42]} Nf6 {[%emt 0:00:05]} 2. Bg2 {[%emt 0:00:05]} g6 {[%emt 0:00:03]} 3. e4 {[%emt 0:00:25]} d6 {[%emt 0:01:46]} 4. d4 {[%emt 0:06:02]} Bg7 {[%emt 0:00:08]} 5. Nc3 {[%emt 0:00:07]} O-O {[%emt 0:00:18]} 6. Nge2 {[%emt 0:00:13]} c6 {[%emt 0:02:57]} 7. a4 {[%emt 0:00:47]} e5 {[%emt 0:00:28]} 8. h3 {[%emt 0:00:23]} Nbd7 {[%emt 0:02:07]} 9. Be3 {[%emt 0:00:18]} exd4 {[%emt 0:03:04]} 10. Bxd4 {[%emt 0:00:09]} Re8 {[%emt 0:02:13]} 11. O-O {[%emt 0:00:13]} Qc7 {[%emt 0:00:55]} 12. Qd2 {[%emt 0:07:09]} b6 {[%emt 0:15:38]} 13. Rad1 {[%emt 0:01:13]} Ba6 {[%emt 0:01:57]} 14. Rfe1 {[%emt 0:06:38]} Rad8 {[%emt 0:00:23]} 15. g4 {[%emt 0:12:39]} Bxe2 {[%emt 0:22:26]} 16. Rxe2 {[%emt 0:00:52]} Nc5 {[%emt 0:02:01]} 17. g5 {[%emt 0:08:10]} Nh5 {[%emt 0:00:16]} 18. Bxg7 {[%emt 0:00:09]} Nxg7 {[%emt 0:06:48]} 19. f4 {[%emt 0:02:02]} a6 {[%emt 0:04:37]} 20. b4 {[%emt 0:02:41]} Nce6 {[%emt 0:05:47]} 21. Rf2 {[%emt 0:00:16]} b5 {[%emt 0:03:09]} 22. axb5 {[%emt 0:04:08]} axb5 {[%emt 0:00:08]} 23. f5 {[%emt 0:15:07]} Nf8 {[%emt 0:00:20]} 24. h4 {[%emt 0:04:53]} Re5 {[%emt 0:04:19]} 25. Bh3 {[%emt 0:02:23]} d5 {[%emt 0:04:15]} 26. exd5 {[%emt 0:04:26]} cxd5 {[%emt 0:03:03]} 27. Nxb5 {[%emt 0:02:56]} Qb8 {[%emt 0:00:24]} 28. Nd4 {[%emt 0:00:24]} Re4 {[%emt 0:01:07]} 29. Kg2 {[%emt 0:06:57]} Nh5 {[%emt 0:02:16]} 30. Rf3 {[%emt 0:03:45]} Rde8 {[%emt 0:01:01]} 31. Rdf1 {[%emt 0:00:47]} gxf5 {[%emt 0:01:09]} 32. R1f2 {[%emt 0:01:27]} Ng6 {[%emt 0:03:04]} 33. Nxf5 {[%emt 0:02:08]} Ngf4+ {[%emt 0:02:01]} 34. Kh1 {[%emt 0:01:19]} Qe5 {[%emt 0:01:28]} 35. Bf1 {[%emt 0:01:12]} Kf8 {[%emt 0:00:06]} 36. Nh6 {[%emt 0:00:30]} Re7 {[%emt 0:01:14]} 37. b5 {[%emt 0:01:48]} d4 {[%emt 0:01:54]} 38. Ng4 {[%emt 0:00:30]} Qd6 {[%emt 0:03:14]} 39. Nf6 {[%emt 0:00:28]} Re3 {[%emt 0:00:01]} 40. Nxh5 {[%emt 0:02:37]} Nxh5 {[%emt 0:00:02]} 41. Bc4 {[%emt 0:31:26]} Ng3+ {[%emt 0:31:21]} 42. Kg2 {[%emt 0:00:06]} Ne4 {[%emt 0:00:54]} 43. Rxe3 {[%emt 0:00:00]} Nxd2 {[%emt 0:00:00]} 44. Rxe7 {[%emt 0:00:00]} Kxe7 {[%emt 0:00:00]} 45. Rxd2 {[%emt 0:00:00]} Qf4 {[%emt 0:00:00]} 46. Rf2 {[%emt 0:00:00]} Qxh4 {[%emt 0:00:00]} 47. Rxf7+ {[%emt 0:00:00]} Kd6 {[%emt 0:00:00]} 48. b6 {[%emt 0:00:00]} Qxg5+ {[%emt 0:00:00]} 49. Kf3 {[%emt 0:00:00]} Qe3+ {[%emt 0:00:00]} 50. Kg4 {[%emt 0:00:00]} Qe4+ {[%emt 0:00:00]} 51. Kg5 {[%emt 0:00:00]} Qg2+ {[%emt 0:00:00]} 52. Kf4 {[%emt 0:00:00]} Kc5 {[%emt 0:00:00]} 53. b7 {[%emt 0:00:00]} Qh2+ {[%emt 0:00:00]} 0-1

[Event "ECo-C Extraliga 2023-24"]
[Site "Slovakia"]
[Date "2024.02.25"]
[Round "8.7"]
[White "Szegi, Tamas"]
[Black "Vojtek, Vladimir"]
[Result "1-0"]
[ECO "C21"]
[WhiteElo "2149"]
[BlackElo "2288"]
[Annotator "ChessBase"]
[PlyCount "79"]
[EventDate "2023.10.06"]
[EventType "team-tourn"]
[EventCountry "SVK"]
[SourceTitle "playchess.com"]
[Source "ChessBase"]
[SourceQuality "1"]
[TimeControl "40/5400+30:1800+30"]

1. e4 {[%emt 0:00:06]} e5 {[%emt 0:01:05]} 2. d4 {[%emt 0:04:53]} exd4 {[%emt 0:00:32]} 3. c3 {[%emt 0:01:06]} d5 {[%emt 0:04:50]} 4. exd5 {[%emt 0:04:26]} Nf6 {[%emt 0:05:44]} 5. Nf3 {[%emt 0:06:47]} Qxd5 {[%emt 0:09:47]} 6. cxd4 {[%emt 0:06:36]} Bb4+ {[%emt 0:01:30]} 7. Nc3 {[%emt 0:09:07]} O-O {[%emt 0:00:19]} 8. Bd3 {[%emt 0:06:28]} Re8+ {[%emt 0:03:21]} 9. Be3 {[%emt 0:03:23]} Bf5 {[%emt 0:23:38]} 10. O-O {[%emt 0:05:00]} Bxc3 {[%emt 0:00:55]} 11. bxc3 {[%emt 0:00:09]} Bxd3 {[%emt 0:00:06]} 12. Qxd3 {[%emt 0:00:07]} Nbd7 {[%emt 0:01:14]} 13. c4 {[%emt 0:11:33]} Qd6 {[%emt 0:04:46]} 14. Rfd1 {[%emt 0:10:50]} Rad8 {[%emt 0:10:26]} 15. h3 {[%emt 0:01:39]} h6 {[%emt 0:01:23]} 16. Rab1 {[%emt 0:02:50]} Qa6 {[%emt 0:04:11]} 17. Qb3 {[%emt 0:06:13]} b6 {[%emt 0:05:33]} 18. Qc2 {[%emt 0:08:24]} Ne4 {[%emt 0:05:29]} 19. Bf4 {[%emt 0:03:02]} Qb7 {[%emt 0:03:34]} 20. Rb3 {[%emt 0:00:52]} Nf8 {[%emt 0:02:21]} 21. Re3 {[%emt 0:02:32]} Ng6 {[%emt 0:00:43]} 22. Bh2 {[%emt 0:00:27]} Nd6 {[%emt 0:05:31]} 23. Ne5 {[%emt 0:01:43]} Nh4 {[%emt 0:01:11]} 24. d5 {[%emt 0:00:55]} Nhf5 {[%emt 0:02:15]} 25. Rf3 {[%emt 0:02:02]} f6 {[%emt 0:00:41]} 26. Nc6 {[%emt 0:00:19]} Qc8 {[%emt 0:01:39]} 27. Bxd6 {[%emt 0:00:28]} Nxd6 {[%emt 0:00:11]} 28. Nxd8 {[%emt 0:00:19]} Rxd8 {[%emt 0:00:36]} 29. c5 {[%emt 0:00:18]} Nf7 {[%emt 0:00:09]} 30. cxb6 {[%emt 0:00:16]} axb6 {[%emt 0:00:06]} 31. Rc3 {[%emt 0:00:38]} Rd7 {[%emt 0:00:39]} 32. Rc1 {[%emt 0:00:22]} Rxd5 {[%emt 0:01:16]} 33. Rxc7 {[%emt 0:00:05]} Qf5 {[%emt 0:00:41]} 34. Qxf5 {[%emt 0:01:26]} Rxf5 {[%emt 0:00:01]} 35. Rb7 {[%emt 0:00:16]} Nd6 {[%emt 0:00:48]} 36. Rxb6 {[%emt 0:00:12]} Ne4 {[%emt 0:00:09]} 37. a4 {[%emt 0:00:47]} Rxf2 {[%emt 0:00:33]} 38. Re1 {[%emt 0:00:40]} Rf4 {[%emt 0:00:12]} 39. Rb4 {[%emt 0:00:10]} f5 {[%emt 0:00:11]} 40. a5 {[%emt 0:00:09]} 1-0

[Event "ECo-C Extraliga 2023-24"]
[Site "Slovakia"]
[Date "2024.02.25"]
[Round "8.8"]
[White "Kaczmarek, Aleksander"]
[Black "Terbe, Zsuzsanna"]
[Result "0-1"]
[ECO "C55"]
[WhiteElo "2362"]
[BlackElo "2170"]
[Annotator "ChessBase"]
[PlyCount "66"]
[EventDate "2023.10.06"]
[EventType "team-tourn"]
[EventCountry "SVK"]
[SourceTitle "playchess.com"]
[Source "ChessBase"]
[SourceQuality "1"]
[TimeControl "40/5400+30:1800+30"]

1. e4 {[%emt 0:00:04]} e5 {[%emt 0:00:06]} 2. Nf3 {[%emt 0:00:38]} Nc6 {[%emt 0:00:07]} 3. Bc4 {[%emt 0:03:02]} Nf6 {[%emt 0:00:16]} 4. Qe2 {[%emt 0:00:07]} Bc5 {[%emt 0:04:28]} 5. d3 {[%emt 0:03:44]} O-O {[%emt 0:05:06]} 6. Bg5 {[%emt 0:01:20]} Be7 {[%emt 0:02:22]} 7. Nbd2 {[%emt 0:05:55]} h6 {[%emt 0:00:35]} 8. Bxf6 {[%emt 0:03:23]} Bxf6 {[%emt 0:00:09]} 9. O-O-O {[%emt 0:00:46]} g6 {[%emt 0:09:27]} 10. Kb1 {[%emt 0:04:27]} Bg7 {[%emt 0:01:41]} 11. Rhg1 {[%emt 0:04:26]} Rb8 {[%emt 0:04:28]} 12. g4 {[%emt 0:03:16]} b5 {[%emt 0:00:23]} 13. Bd5 {[%emt 0:02:38]} Ne7 {[%emt 0:01:50]} 14. g5 {[%emt 0:03:46]} h5 {[%emt 0:01:13]} 15. Bb3 {[%emt 0:01:49]} a5 {[%emt 0:04:11]} 16. a4 {[%emt 0:02:30]} c6 {[%emt 0:06:09]} 17. c3 {[%emt 0:02:59]} Qb6 {[%emt 0:16:24]} 18. Ba2 {[%emt 0:00:47]} Ba6 {[%emt 0:02:27]} 19. axb5 {[%emt 0:06:18]} Bxb5 {[%emt 0:01:28]} 20. Nc4 {[%emt 0:01:43]} Qc7 {[%emt 0:04:59]} 21. Ka1 {[%emt 0:08:40]} Rb7 {[%emt 0:03:54]} 22. Rd2 {[%emt 0:02:29]} Rfb8 {[%emt 0:00:58]} 23. Nh4 {[%emt 0:03:35]} d5 {[%emt 0:02:35]} 24. Na3 {[%emt 0:04:03]} Ba4 {[%emt 0:05:11]} 25. Qf3 {[%emt 0:01:28]} Bb3 {[%emt 0:01:25]} 26. Nf5 {[%emt 0:02:09]} Nxf5 {[%emt 0:03:22]} 27. exf5 {[%emt 0:00:13]} Qd6 {[%emt 0:03:58]} 28. Bb1 {[%emt 0:02:14]} d4 {[%emt 0:04:40]} 29. c4 {[%emt 0:11:32]} Qb4 {[%emt 0:00:45]} 30. Re2 {[%emt 0:03:06]} Qa4 {[%emt 0:01:19]} 31. fxg6 {[%emt 0:05:27]} fxg6 {[%emt 0:01:38]} 32. Qe4 {[%emt 0:02:10]} Bd1 {[%emt 0:01:43]} 33. Rxd1 {[%emt 0:05:43]} Rxb2 {[%emt 0:02:05]} 0-1

[Event "ECo-C Extraliga 2023-24"]
[Site "Slovakia"]
[Date "2024.02.25"]
[Round "8.8"]
[White "Stevik, Patrik"]
[Black "Compel, Daniel"]
[Result "1/2-1/2"]
[ECO "E04"]
[WhiteElo "2188"]
[BlackElo "2208"]
[Annotator "RC"]
[PlyCount "106"]
[EventDate "2023.10.06"]
[EventType "team-tourn"]
[EventCountry "SVK"]
[SourceTitle "playchess.com"]
[Source "ChessBase"]
[SourceQuality "1"]
[TimeControl "40/5400+30:1800+30"]

1. Nf3 {[%emt 0:00:02]} Nf6 {[%emt 0:00:41]} 2. g3 {[%emt 0:00:05]} d5 {[%emt 0:00:26]} 3. Bg2 {[%emt 0:00:03]} c5 {[%emt 0:00:41]} 4. O-O {[%emt 0:00:14]} Nc6 {[%emt 0:00:10]} 5. d4 {[%emt 0:00:10]} e6 {[%emt 0:01:38]} 6. c4 {[%emt 0:02:48]} dxc4 {[%emt 0:01:40]} 7. Qa4 {[%emt 0:00:06]} Bd7 {[%emt 0:00:52]} 8. dxc5 {[%emt 0:04:14]} Na5 {[%emt 0:16:07]} 9. Qa3 {[%emt 0:02:03]} b6 {[%emt 0:10:31]} 10. b4 {[%emt 0:05:41]} Nc6 {[%emt 0:03:39]} 11. Qc3 {[%emt 0:30:15]} bxc5 {[%emt 0:06:06]} 12. bxc5 {[%emt 0:00:55]} Bxc5 {[%emt 0:02:23]} 13. Qxc4 {[%emt 0:00:14]} Qe7 {[%emt 0:03:27]} 14. Bg5 {[%emt 0:01:43]} Rc8 {[%emt 0:07:32]} 15. Nbd2 {[%emt 0:05:55]} Nb4 {[%emt 0:02:24]} 16. Qh4 {[%emt 0:01:33]} Bc6 {[%emt 0:18:16]} 17. a3 {[%emt 0:05:57]} Na6 {[%emt 0:01:16]} 18. e4 {[%emt 0:01:06]} e5 {[%emt 0:01:24]} 19. Nc4 {[%emt 0:02:25]} Bb5 {[%emt 0:01:39]} 20. Ncxe5 {[%emt 0:05:08]} Bxf1 {[%emt 0:01:39]} 21. Bxf1 {[%emt 0:01:16]} Nc7 {[%emt 0:01:09]} 22. Ng4 {[%emt 0:05:48]} Bxf2+ {[%emt 0:02:39]} 23. Nxf2 {[%emt 0:01:02]} Ne6 {[%emt 0:00:41]} 24. Bb5+ {[%emt 0:03:00]} Kf8 {[%emt 0:00:06]} 25. Bxf6 {[%emt 0:04:22]} Qxf6 {[%emt 0:00:10]} 26. Qxf6 {[%emt 0:00:10]} gxf6 {[%emt 0:00:05]} 27. Rd1 {[%emt 0:01:44]} Kg7 {[%emt 0:01:52]} 28. Nh4 {[%emt 0:01:48]} Rhd8 {[%emt 0:00:24]} 29. Nf5+ {[%emt 0:00:07]} Kf8 {[%emt 0:00:10]} 30. Rxd8+ {[%emt 0:01:49]} Rxd8 {[%emt 0:00:13]} 31. Ng4 {[%emt 0:00:16]} Rd1+ {[%emt 0:01:43]} 32. Kf2 {[%emt 0:00:09]} Ra1 {[%emt 0:01:30]} 33. Nxf6 {[%emt 0:03:31]} Rxa3 {[%emt 0:00:40]} 34. Nxh7+ {[%emt 0:00:08]} Kg8 {[%emt 0:00:04]} 35. Nf6+ {[%emt 0:00:02]} Kh8 {[%emt 0:00:20]} 36. h4 {[%emt 0:00:38]} a5 {[%emt 0:00:41]} 37. Bc4 {[%emt 0:03:34]} Nd8 {[%emt 0:01:41]} 38. g4 {[%emt 0:00:51]} Rc3 {[%emt 0:00:09]} 39. Bd5 {[%emt 0:01:10]} a4 {[%emt 0:00:36]} 40. g5 {[%emt 0:00:12]} Ne6 {[%emt 0:00:17]} 41. Nd6 {[%emt 0:12:15]} Nf4 {[%emt 0:02:12]} 42. Bxf7 {[%emt 0:01:51]} a3 {[%emt 0:00:17]} 43. Nb5 {[%emt 0:04:12]} Nh3+ {[%emt 0:02:09]} 44. Ke2 {[%emt 0:02:28]} a2 {[%emt 0:01:45]} 45. Bxa2 {[%emt 0:00:46]} Rc2+ {[%emt 0:00:04]} 46. Kf3 {[%emt 0:00:21]} Rxa2 {[%emt 0:00:11]} 47. Nd6 {[%emt 0:01:05]} Kg7 {[%emt 0:01:24]} 48. Kg4 {[%emt 0:01:00]} Nf2+ {[%emt 0:00:48]} 49. Kh5 {[%emt 0:00:35]} Ra5 {[%emt 0:00:43]} 50. Nf5+ {[%emt 0:00:15]} Kf7 {[%emt 0:00:41]} 51. Nd5 {[%emt 0:00:17]} Nxe4 {[%emt 0:07:40]} 52. g6+ {[%emt 0:00:11]} Ke6 {[%emt 0:00:08]} 53. g7 {[%emt 0:00:50]} Kf7 {[%emt 0:02:56]} 1/2-1/2

[Event "ECo-C Extraliga 2023-24"]
[Site "Slovakia"]
[Date "2024.02.25"]
[Round "8.8"]
[White "Cajka, Tibor"]
[Black "Cibulka, Vladimir"]
[Result "1/2-1/2"]
[ECO "D02"]
[WhiteElo "2107"]
[BlackElo "2103"]
[Annotator "RC"]
[PlyCount "171"]
[EventDate "2023.10.06"]
[EventType "team-tourn"]
[EventCountry "SVK"]
[SourceTitle "playchess.com"]
[Source "ChessBase"]
[SourceQuality "1"]
[TimeControl "40/5400+30:1800+30"]

1. Nf3 {[%emt 0:01:25]} d5 {[%emt 0:00:38]} 2. d4 {[%emt 0:00:13]} Nf6 {[%emt 0:00:22]} 3. Bf4 {[%emt 0:00:06]} Bf5 {[%emt 0:01:36]} 4. e3 {[%emt 0:00:06]} e6 {[%emt 0:00:09]} 5. Bd3 {[%emt 0:01:03]} Bxd3 {[%emt 0:00:28]} 6. Qxd3 {[%emt 0:00:21]} Nbd7 {[%emt 0:00:32]} 7. h3 {[%emt 0:01:42]} Be7 {[%emt 0:00:39]} 8. Nbd2 {[%emt 0:00:31]} O-O {[%emt 0:00:23]} 9. O-O {[%emt 0:00:47]} c5 {[%emt 0:01:15]} 10. c3 {[%emt 0:00:06]} Qb6 {[%emt 0:02:45]} 11. Rab1 {[%emt 0:00:28]} Rac8 {[%emt 0:00:31]} 12. Bh2 {[%emt 0:01:27]} Rfd8 {[%emt 0:00:59]} 13. Ne5 {[%emt 0:03:12]} cxd4 {[%emt 0:02:14]} 14. exd4 {[%emt 0:01:21]} Nxe5 {[%emt 0:00:14]} 15. Bxe5 {[%emt 0:01:24]} Nd7 {[%emt 0:00:41]} 16. Bh2 {[%emt 0:04:08]} Bd6 {[%emt 0:03:27]} 17. Bxd6 {[%emt 0:03:18]} Qxd6 {[%emt 0:00:14]} 18. f4 {[%emt 0:00:04]} f5 {[%emt 0:09:15]} 19. Qg3 {[%emt 0:18:09]} Nf6 {[%emt 0:01:11]} 20. Qh4 {[%emt 0:00:47]} Ne4 {[%emt 0:02:11]} 21. Nf3 {[%emt 0:00:17]} Rf8 {[%emt 0:01:08]} 22. Ng5 {[%emt 0:05:05]} h6 {[%emt 0:01:08]} 23. Nxe4 {[%emt 0:02:38]} dxe4 {[%emt 0:00:41]} 24. Rbe1 {[%emt 0:03:52]} Qd8 {[%emt 0:01:33]} 25. Qh5 {[%emt 0:09:00]} Qe8 {[%emt 0:00:21]} 26. Qxe8 {[%emt 0:14:52]} Rfxe8 {[%emt 0:00:16]} 27. Kf2 {[%emt 0:00:08]} Kf7 {[%emt 0:00:13]} 28. Ke3 {[%emt 0:00:18]} b5 {[%emt 0:04:47]} 29. Rc1 {[%emt 0:02:07]} Rc7 {[%emt 0:01:01]} 30. Rf2 {[%emt 0:04:46]} Kf6 {[%emt 0:08:14]} 31. b3 {[%emt 0:00:48]} g5 {[%emt 0:00:42]} 32. c4 {[%emt 0:02:54]} gxf4+ {[%emt 0:02:16]} 33. Kxf4 {[%emt 0:00:27]} Rd8 {[%emt 0:00:51]} 34. Rd2 {[%emt 0:01:47]} Rxd4 {[%emt 0:06:18]} 35. Rxd4 {[%emt 0:01:40]} e5+ {[%emt 0:00:10]} 36. Ke3 {[%emt 0:00:02]} exd4+ {[%emt 0:00:26]} 37. Kxd4 {[%emt 0:00:06]} Rd7+ {[%emt 0:01:00]} 38. Ke3 {[%emt 0:08:26]} bxc4 {[%emt 0:04:48]} 39. bxc4 {[%emt 0:00:48]} Ke5 {[%emt 0:00:31]} 40. c5 {[%emt 0:02:23]} f4+ {[%emt 0:00:14]} 41. Ke2 {[%emt 0:33:41]} Rc7 {[%emt 0:30:37]} 42. c6 {[%emt 0:00:00]} Kd5 {[%emt 0:00:00]} 43. Rd1+ {[%emt 0:00:00]} Kxc6 {[%emt 0:00:00]} 44. Rd4 {[%emt 0:00:00]} Re7 {[%emt 0:00:00]} 45. a3 {[%emt 0:00:00]} Kc5 {[%emt 0:00:00]} 46. Rd8 {[%emt 0:00:00]} Rf7 {[%emt 0:00:00]} 47. Kf2 {[%emt 0:00:00]} Rf6 {[%emt 0:00:00]} 48. Rd1 {[%emt 0:00:00]} Ra6 49. Ra1 {[%emt 0:02:21]} Kd4 {[%emt 0:00:00]} 50. Rd1+ {[%emt 0:00:11]} Ke5 {[%emt 0:00:00]} 51. Ra1 {[%emt 0:00:08]} Rb6 {[%emt 0:00:00]} 52. Rc1 {[%emt 0:01:35]} Rb2+ {[%emt 0:00:00]} 53. Kf1 {[%emt 0:00:17]} Ra2 54. Rc3 {[%emt 0:00:40]} Kd4 {[%emt 0:00:00]} 55. Rb3 {[%emt 0:00:01]} Rd2 {[%emt 0:00:00]} 56. h4 {[%emt 0:00:34]} Rd3 {[%emt 0:00:00]} 57. Rb1 {[%emt 0:01:10]} Rxa3 {[%emt 0:00:00]} 58. Rd1+ {[%emt 0:00:09]} Rd3 {[%emt 0:00:00]} 59. Ra1 {[%emt 0:00:04]} f3 {[%emt 0:00:00]} 60. gxf3 {[%emt 0:00:47]} Rxf3+ {[%emt 0:00:00]} 61. Ke2 {[%emt 0:00:02]} Rh3 {[%emt 0:00:00]} 62. Ra4+ {[%emt 0:01:07]} Ke5 {[%emt 0:00:00]} 63. Rxa7 {[%emt 0:02:16]} Rxh4 {[%emt 0:00:00]} 64. Re7+ {[%emt 0:00:02]} Kf4 {[%emt 0:00:00]} 65. Rf7+ {[%emt 0:00:05]} Ke5 {[%emt 0:00:00]} 66. Re7+ {[%emt 0:00:01]} Kf6 {[%emt 0:00:00]} 67. Re8 {[%emt 0:00:24]} Rg4 {[%emt 0:00:00]} 68. Ke3 {[%emt 0:00:11]} Kg5 {[%emt 0:00:00]} 69. Rg8+ {[%emt 0:01:11]} Kh4 {[%emt 0:00:00]} 70. Rh8 {[%emt 0:00:09]} h5 {[%emt 0:00:00]} 71. Rh7 {[%emt 0:00:29]} Kg5 {[%emt 0:00:00]} 72. Rh8 {[%emt 0:00:49]} h4 {[%emt 0:00:00]} 73. Rg8+ {[%emt 0:00:06]} Kf5 {[%emt 0:00:00]} 74. Rf8+ {[%emt 0:00:06]} Ke5 {[%emt 0:00:00]} 75. Re8+ {[%emt 0:00:07]} Kd5 {[%emt 0:00:00]} 76. Rd8+ {[%emt 0:00:05]} Kc6 {[%emt 0:01:01]} 77. Rc8+ {[%emt 0:00:17]} Kd7 {[%emt 0:00:13]} 78. Rh8 {[%emt 0:00:38]} Ke7 {[%emt 0:00:22]} 79. Rh7+ {[%emt 0:00:53]} Kf8 80. Ra7 {[%emt 0:01:32]} Kg8 {[%emt 0:01:19]} 81. Ra5 {[%emt 0:01:00]} Kh7 {[%emt 0:04:01]} 82. Re5 {[%emt 0:00:46]} Kg6 {[%emt 0:00:31]} 83. Rxe4 {[%emt 0:00:34]} Rg3+ {[%emt 0:00:22]} 84. Kf2 {[%emt 0:00:09]} Kg5 {[%emt 0:00:08]} 85. Ra4 Rb3 {[%emt 0:00:13]} 86. Kg2 {[%emt 0:00:20]} 1/2-1/2

[Event "ECo-C Extraliga 2023-24"]
[Site "Slovakia"]
[Date "2024.02.25"]
[Round "8.8"]
[White "Ropovik, Samuel"]
[Black "Gyerpal, Adrian"]
[Result "0-1"]
[ECO "C58"]
[WhiteElo "1816"]
[BlackElo "2213"]
[Annotator "ChessBase"]
[PlyCount "96"]
[EventDate "2023.10.06"]
[EventType "team-tourn"]
[EventCountry "SVK"]
[SourceTitle "playchess.com"]
[Source "ChessBase"]
[SourceQuality "1"]
[TimeControl "40/5400+30:1800+30"]

1. e4 {[%emt 0:00:02]} e5 {[%emt 0:00:14]} 2. Nf3 {[%emt 0:00:07]} Nc6 {[%emt 0:00:06]} 3. Bc4 {[%emt 0:00:10]} Nf6 {[%emt 0:00:54]} 4. Ng5 {[%emt 0:00:03]} d5 {[%emt 0:00:08]} 5. exd5 {[%emt 0:00:12]} Na5 {[%emt 0:00:07]} 6. Bb5+ {[%emt 0:00:13]} c6 {[%emt 0:00:07]} 7. dxc6 {[%emt 0:00:13]} bxc6 {[%emt 0:00:07]} 8. Bd3 {[%emt 0:00:24]} h6 {[%emt 0:16:00]} 9. Ne4 {[%emt 0:00:15]} Nd5 {[%emt 0:00:37]} 10. O-O {[%emt 0:12:51]} Be7 {[%emt 0:02:09]} 11. Nbc3 {[%emt 0:06:35]} O-O {[%emt 0:01:52]} 12. Re1 {[%emt 0:04:09]} f5 {[%emt 0:09:47]} 13. Ng3 {[%emt 0:01:01]} Bd6 {[%emt 0:01:52]} 14. Bf1 {[%emt 0:14:27]} Qf6 {[%emt 0:02:21]} 15. d3 {[%emt 0:19:48]} Rb8 {[%emt 0:03:05]} 16. a3 {[%emt 0:03:10]} Be6 {[%emt 0:07:04]} 17. Be2 {[%emt 0:04:03]} Nb7 {[%emt 0:08:40]} 18. Nf1 {[%emt 0:06:35]} g5 {[%emt 0:05:41]} 19. Ne3 {[%emt 0:03:13]} g4 {[%emt 0:04:20]} 20. Bd2 {[%emt 0:07:41]} h5 {[%emt 0:03:23]} 21. Ncxd5 {[%emt 0:04:21]} cxd5 {[%emt 0:00:33]} 22. c4 {[%emt 0:01:28]} d4 {[%emt 0:10:20]} 23. Nf1 {[%emt 0:00:12]} e4 {[%emt 0:03:26]} 24. b4 {[%emt 0:01:02]} Rbe8 {[%emt 0:05:08]} 25. Qc1 {[%emt 0:01:00]} f4 {[%emt 0:01:46]} 26. dxe4 {[%emt 0:01:58]} f3 {[%emt 0:00:09]} 27. gxf3 {[%emt 0:01:27]} gxf3 {[%emt 0:00:10]} 28. Bd3 {[%emt 0:00:16]} Qg6+ {[%emt 0:07:25]} 29. Ng3 {[%emt 0:00:03]} Be5 {[%emt 0:03:15]} 30. Bh6 {[%emt 0:01:47]} h4 {[%emt 0:00:38]} 31. Qg5 {[%emt 0:03:32]} Qxg5 {[%emt 0:00:09]} 32. Bxg5 {[%emt 0:00:01]} hxg3 {[%emt 0:00:08]} 33. hxg3 {[%emt 0:00:15]} Bxg3 {[%emt 0:01:13]} 34. e5 {[%emt 0:02:02]} Bf4 {[%emt 0:01:24]} 35. Bf6 {[%emt 0:00:05]} Kf7 {[%emt 0:00:51]} 36. Be4 {[%emt 0:01:11]} Rg8+ {[%emt 0:00:43]} 37. Kh1 {[%emt 0:00:00]} Rg2 {[%emt 0:01:04]} 38. Bxf3 {[%emt 0:01:06]} Rh2+ {[%emt 0:00:25]} 39. Kg1 {[%emt 0:00:04]} Rg8+ {[%emt 0:01:31]} 40. Kf1 {[%emt 0:00:27]} Bxc4+ {[%emt 0:00:08]} 41. Re2 {[%emt 0:30:55]} Bxe2+ {[%emt 0:02:32]} 42. Kxe2 {[%emt 0:00:00]} Nd8 {[%emt 0:00:13]} 43. Bd5+ {[%emt 0:00:00]} Ne6 {[%emt 0:01:35]} 44. Rd1 {[%emt 0:00:00]} Bg5 {[%emt 0:14:25]} 45. Rg1 {[%emt 0:00:00]} Rxf2+ {[%emt 0:00:30]} 46. Kd3 {[%emt 0:00:00]} Bxf6 {[%emt 0:04:44]} 47. Bxe6+ {[%emt 0:00:00]} Kxe6 {[%emt 0:00:13]} 48. Rxg8 {[%emt 0:00:00]} Kxe5 {[%emt 0:00:21]} 0-1